Cogmind - Beta 16.1 @@@ ROGUE MODE // 2026.03.29 @ 00:14:36 Player: Ceorik Result: Destroyed by GU-6AC(R) with Subdweller Laser Performance ------------- Evolutions (0) 0 Regions Visited (3) 600 Robots Destroyed (22) 110 Value Destroyed (429) 429 Prototype IDs (1) 20 Alien Tech Used (0) 0 Bonus (30) 30 TOTAL SCORE: 1189 Bonus ------- Follower Combat Kills 30 Cogmind --------- Core Integrity 0/250 Matter 225/300 Energy 250/250 System Corruption 0% Temperature Cool (6) Movement Rolling (145) Ox3 Location -10/Subcaves Parts ------- > --- POWER (1) -------- Ion Engine > --- PROPULSION (2) --- Light Treads Compact Wheel > --- UTILITY (2) ------ High-capacity Storage Unit > --- WEAPON (2) ------- Light Assault Rifle Grenade Launcher > --- INVENTORY (20) --- Ion Engine Ion Engine Light Deuterium Engine Light Treads Light Treads Advanced Heat Sink Huge Storage Unit YI-UF0's Bottomless Matter Pit Seismic Detector Scrap Shield Splice Drone Bay (6/6) Beam Cannon Beam Cannon Light Assault Rifle Subdweller Machine Gun Peak State ------------ > --- POWER ------------ Ion Engine > --- PROPULSION ------- Light Treads Wheel > --- UTILITY ---------- High-capacity Storage Unit Splice Drone Bay > --- WEAPON ----------- Medium Laser Assault Rifle > --- INVENTORY -------- Ion Engine Ion Engine Ion Engine Ion Engine Light Treads Light Treads Wheel Compact Wheel Improved Heat Sink Huge Storage Unit Structural Scanner Seismic Detector Beam Cannon Beam Cannon Light Assault Rifle Light Assault Rifle Grenade Launcher Grenade Launcher [Rating: 15] Favorites ----------- Power Ion Engine Engine Ion Engine Propulsion Light Treads Treads Light Treads Wheel Wheel Utility High-capacity Storage Unit Device Structural Scanner Storage High-capacity Storage Unit Protection Light Armor Plating Weapon Assault Rifle Energy Gun Medium Laser Energy Cannon Beam Cannon Ballistic Gun Assault Rifle Launcher Grenade Launcher Build | -11 -10 -10 -10 ------- Run | Yrd Mat Min Sub Slots Evolved . | . . . . Power . | . . . . Propulsion . | . . . . Utility . | . . . . Weapon . | . . . . Parts Attached 21 | 8 4 4 5 Power 2 | 1 . . 1 Engine 2 | 1 . . 1 Core . | . . . . Reactor . | . . . . Propulsion 5 | 2 1 . 2 Treads 2 | 2 . . . Leg . | . . . . Wheel 3 | . 1 . 2 Hover . | . . . . Flight . | . . . . Utility 8 | 2 3 3 . Device 5 | 1 1 3 . Storage 2 | 1 1 . . Processor . | . . . . Hackware . | . . . . Protection 1 | . 1 . . Artifact . | . . . . Weapon 6 | 3 . 1 2 Energy Gun 1 | 1 . . . Energy Cannon 1 | . . . 1 Ballistic Gun 2 | 2 . . . Ballistic Cannon . | . . . . Launcher 2 | . . 1 1 Special Weapon . | . . . . Impact Weapon . | . . . . Slashing Weapon . | . . . . Piercing Weapon . | . . . . Special Melee Weapon . | . . . . Unidentified Prototypes 1 | . . 1 . Parts Lost 7 | . 1 . 6 Power 1 | . . . 1 Propulsion 1 | . . . 1 Utility 2 | . 1 . 1 Weapon 3 | . . . 3 Highest Loss Streak 5 | . 1 . 5 To Critical Strikes 1 | . . . 1 Average Backups 15 | 3 10 19 19 Power 3 | . 2 4 3 Propulsion 3 | 2 3 4 3 Utility 3 | . 1 4 5 Weapon 4 | . 2 6 5 Tool/Special . | . . . . Unused Backups 14 | . 2 1 11 Power 4 | . . 1 3 Propulsion 3 | . 1 . 2 Utility 3 | . . . 3 Weapon 3 | . . . 3 Tool/Special 1 | . 1 . . Average Slot Usage (%) 99 | . 99 100 99 Engine 14 | . 14 14 14 Treads 16 | . 21 14 14 Wheel 11 | . 7 14 14 Device 13 | . 11 14 13 Storage 14 | . 14 14 14 Energy Gun 13 | . 14 13 10 Ballistic Gun 13 | . 14 14 13 Peak Build Rating 15 | 7 10 15 11 Average Rating 9 | 5 8 11 10 On Entrance 7 | . 7 10 11 Avg Prop Armor Cover (%) 12 | . 12 12 12 Naked Turns . | . . . . Heaviest Build 51 | 15 50 50 51 Greatest Support 40 | 40 40 10 16 Greatest Overweight (x) 5 | . 4 4 5 Average Overweight (x) 3 | . 2 4 4 Largest Inventory Capacity 20 | 8 20 20 20 Average Capacity 17 | 7 14 20 20 Most Carried 20 | 5 17 20 20 Average Carried 15 | 3 10 19 19 Final Capacity 20 | 8 20 20 20 Final Carried 20 | 5 17 20 16 Class Distribution -------------------- 100% | Mutant Dominant Class ---------------- Mutant | -10/Materials Mutant | -10/Mines Mutant | -10/Subcaves Resources | -11 -10 -10 -10 ----------- Run | Yrd Mat Min Sub Matter Collected 686 | 264 180 116 126 Remotely . | . . . . Salvage Created 534 | 28 284 28 194 Parts 45 | 4 19 6 16 Haulers Intercepted 2 | . 2 . . Recyclers Shooed . | . . . . Parts Field Recycled . | . . . . Retrieved Matter . | . . . . Parts Self-Destructed 5 | . . . 5 Prevented . | . . . . Parts Restored . | . . . . Kills | -11 -10 -10 -10 ------- Run | Yrd Mat Min Sub Combat Hostiles Destroyed 18 | . 7 6 5 Guns 10 | . 7 . 3 Cannons 1 | . . . 1 AOE 7 | . . 6 1 Classes Destroyed 6 | 1 3 . 2 Tunneler 2 | 2 . . . Hauler 2 | . 2 . . Swarmer 11 | . 5 6 . Grunt 2 | . 2 . . Artisan 1 | . . . 1 Subdweller 5 | . . . 5 Best Kill Streak 6 | 1 2 6 1 Combat Bots Only 6 | . 2 6 1 Max Kills in Single Turn 3 | 1 1 3 1 Gunslinging . | . . . . Exploded 3 | . . 3 1 Melee . | . . . . Uniques/NPCs Destroyed . | . . . . Combat | -11 -10 -10 -10 -------- Run | Yrd Mat Min Sub Hostile Shots Fired 79 | . 39 4 36 Missed 22 | . 14 2 6 Hits 57 | . 25 2 30 Projectile 57 | . 25 2 30 AOE 2 | . . . 2 Critical Strikes 2 | . . . 2 Damage Taken 1060 | . 262 18 780 Core 258 | . 26 18 214 Absorbed by Shields . | . . . . Core Remaining (%) 100 | 100 . . . Volleys Fired 80 | 9 36 3 32 Largest 2 | 2 2 1 2 Hottest 80 | 70 70 30 80 Shots Fired 146 | 18 72 3 53 Gun 133 | 18 72 . 43 Cannon 6 | . . . 6 Launcher 7 | . . 3 4 Special . | . . . . Kinetic 66 | 9 36 . 21 Thermal 73 | 9 36 . 28 Explosive 7 | . . 3 4 Electromagnetic . | . . . . Robot Hit Streak 6 | 3 6 . 5 Robot Miss Streak 6 | 3 6 . 2 Penetration Max . | . . . . Secondary Targets 1 | . 1 . . Max Gunslinging Chain 1 | . 1 . . Shots Hit Robots 80 | 9 39 . 32 Core Hits 35 | 2 14 5 14 Critical Kills . | . . . . Critical Parts Destroyed 1 | . 1 . . Critical Strikes 4 | 1 3 . . Burn 3 | 1 2 . . Destroy 1 | . 1 . . Melee Attacks . | . . . . Impact . | . . . . Slashing . | . . . . Piercing . | . . . . Sneak Attacks . | . . . . Combat Hostiles . | . . . . Follow-up Attacks . | . . . . Damage Inflicted 1296 | 116 485 245 450 Guns 875 | 116 485 . 274 Cannons 17 | . . . 17 Explosions 404 | . . 245 159 Melee . | . . . . Ramming . | . . . . Kinetic 410 | 78 209 . 123 Thermal 482 | 38 276 . 168 Explosive 404 | . . 245 159 Electromagnetic . | . . . . Impact . | . . . . Slashing . | . . . . Piercing . | . . . . Highest Corruption . | . . . . Average Corruption . | . . . . Corruption Purged . | . . . . Corruption Blocked . | . . . . Overload Shots . | . . . . Overflow Damage 27 | . . 27 . Projectiles . | . . . . Explosions 27 | . . 27 . Melee . | . . . . Knockbacks . | . . . . Impact . | . . . . Kinetic . | . . . . Secondary . | . . . . Self-Inflicted Damage 68 | . . . 68 Shots 2 | . . . 2 Rammed . | . . . . Targets Rammed . | . . . . Kicked . | . . . . Crushed . | . . . . Highest Temperature 192 | 54 192 . . Average Temperature 51 | 22 61 . . Received Heat Transfer 111 | . 69 . 42 Siege Activations . | . . . . Martial Activations . | . . . . Shielding Activations . | . . . . Robots Disrupted . | . . . . Combat Hostiles . | . . . . Robots Corrupted . | . . . . Combat Hostiles . | . . . . Parts Fried . | . . . . Impact Corruptions . | . . . . Robots Melted . | . . . . Combat Hostiles . | . . . . Parts Melted 3 | . 3 . . Heat Transferred 1628 | 185 962 . 481 Parts Sabotaged . | . . . . Parts Stolen . | . . . . Parts Stripped . | . . . . Power Chain Reactions . | . . . . Alert | -11 -10 -10 -10 ------- Run | Yrd Mat Min Sub Maximum Alert Level . | . . . . Low Security (%) 100 | 100 100 100 . Level 1 . | . . . . Level 2 . | . . . . Level 3 . | . . . . Level 4 . | . . . . Level 5 . | . . . . High Security . | . . . . Max Security . | . . . . Peak Influence 191 | 5 70 191 . Initial 3 | . . 3 . Average 32 | . 22 50 . Influence Increases 461 | 10 263 188 . Destroy 0b10 Robot/C 260 | . 140 120 . Destroy 0b10 Robot/NC 20 | 10 10 . . Destroy Leader 54 | . 34 20 . Successful Hack 33 | . 33 . . Disable Machine 30 | . . 30 . Destroy Structure 19 | . 1 18 . Lose Combat Pursuer 45 | . 45 . . Influence Decreases 461 | 10 254 197 . Entered New Map 6 | . . 6 . Time Decay 445 | 10 244 191 . Lost Part 10 | . 10 . . Squads Dispatched 1 | . 1 . . Investigation . | . . . . Extermination . | . . . . Reinforcement 1 | . 1 . . Assault . | . . . . Garrison . | . . . . Intercept . | . . . . Searches Triggered . | . . . . Construction Impeded . | . . . . Haulers Reinforced . | . . . . Active Scanning Responses . | . . . . Cargo Convoy Interrupts . | . . . . Stealth | -11 -10 -10 -10 --------- Run | Yrd Mat Min Sub Distress Signals 2 | . 2 . . Communications Jammed . | . . . . Distress Signals . | . . . . Times Spotted 29 | . 15 6 8 Peak Tracking Total 3 | . 3 3 2 Tactical Retreats 2 | . 2 . . Traps | -11 -10 -10 -10 ------- Run | Yrd Mat Min Sub Traps Triggered . | . . . . Indirectly . | . . . . Trap Hack Attempts . | . . . . Triggered . | . . . . Disarmed . | . . . . Reprogrammed . | . . . . Reused . | . . . . Traps Extracted . | . . . . Installed . | . . . . Triggered . | . . . . Machines | -11 -10 -10 -10 ---------- Run | Yrd Mat Min Sub Machines Disabled 2 | . . 2 . Max in Single Turn 2 | . . 2 . Machines Repaired . | . . . . Machines Dismantled . | . . . . Machines Sabotaged . | . . . . Overloaded Fab Kills . | . . . . Hacking | -11 -10 -10 -10 --------- Run | Yrd Mat Min Sub Machines Accessed 7 | . 6 1 . Terminals 6 | . 6 . . Fabricators . | . . . . Repair Stations . | . . . . Recycling Units . | . . . . Scanalyzers . | . . . . Garrison Access . | . . . . Total Hacks 19 | . 18 1 . Successful 12 | . 11 1 . Failed 6 | . 6 . . Catastrophic . | . . . . Database Lockouts 1 | . 1 . . Manual 14 | . 14 . . Terminals 18 | . 18 . . Fabricators . | . . . . Repair Stations . | . . . . Recycling Units . | . . . . Scanalyzers . | . . . . Garrison Access . | . . . . Terminal Hacks 6 | . 5 1 . Part Schematic 1 | . 1 . . Robot Analysis 1 | . 1 . . Open Door 1 | . . 1 . Alert Level 1 | . 1 . . Locate Traps 1 | . 1 . . Hauler Manifests 1 | . 1 . . Fabricator Hacks . | . . . . Repair Station Hacks . | . . . . Recycling Unit Hacks . | . . . . Scanalyzer . | . . . . Garrison Access Hacks . | . . . . Unauthorized Hacks 6 | . 6 . . Terminals 6 | . 6 . . Botnet 6 | . 6 . . Fabricators . | . . . . Repair Stations . | . . . . Recycling Units . | . . . . Scanalyzers . | . . . . Garrison Access . | . . . . Data Cores Recovered . | . . . . Used . | . . . . Hacking Detections 6 | . 6 . . Full Trace Events . | . . . . Feedback Events . | . . . . Feedback Blocked . | . . . . Robot Schematics Acquired . | . . . . Robots Built . | . . . . Authchips . | . . . . Time . | . . . . Total Robot Build Rating . | . . . . Part Schematics Acquired 1 | . 1 . . Parts Built . | . . . . Authchips . | . . . . Time . | . . . . Total Part Build Rating . | . . . . Part Studies Acquired . | . . . . Parts Repaired . | . . . . Time . | . . . . Parts Recycled . | . . . . Recycled Matter . | . . . . Retrieved Matter . | . . . . Retrieved Components . | . . . . Parts Scanalyzed . | . . . . Part Schematics Acquired . | . . . . Parts Damaged . | . . . . Bothacking | -11 -10 -10 -10 ------------ Run | Yrd Mat Min Sub Used RIF Installer . | . . . . Robots Hacked . | . . . . Non-combat . | . . . . Combat . | . . . . Robot Hacks Applied . | . . . . Relay Couplers Released . | . . . . Fabnet Peak Effective % . | . . . . Robots Rewired . | . . . . Allies Hacked . | . . . . Hacks Repelled . | . . . . Allies | -11 -10 -10 -10 -------- Run | Yrd Mat Min Sub Total Allies 3 | . . 3 . Largest Group 3 | . . 3 3 Highest-Rated Group 40 | . . 40 40 Highest-Rated Ally 16 | . . 16 16 Total Orders . | . . . . Ally Attacks 43 | . . . 43 Total Damage 238 | . . . 238 Kills 1 | . . . 1 Allies Corrupted . | . . . . Allies Melted . | . . . . Intel | -11 -10 -10 -10 ------- Run | Yrd Mat Min Sub Active Infowar (turns) 1280 | 11 211 388 670 Structural 1058 | . . 388 670 Seismic 222 | 11 211 . . Robot Analysis Total 1 | . 1 . . Derelict Logs Recovered 2 | . . 1 1 Drone Launches . | . . . . Drone Recoveries . | . . . . Exploration | -11 -10 -10 -10 ------------- Run | Yrd Mat Min Sub Turns Passed 2426 | 142 869 733 682 Spaces Moved 1379 | 59 479 460 381 Core 2 | 2 . . . Treads 261 | 57 204 . . Legs . | . . . . Wheels 1116 | . 275 460 381 Hover . | . . . . Flight . | . . . . Fastest Speed 50 | 50 140 140 140 Average Speed 144 | 156 148 140 142 Slowest Speed 160 | 160 160 140 155 Overloaded Moves . | . . . . Propulsion Burnouts . | . . . . Robots Hopped . | . . . . Potential Cave-ins . | . . . . Cave-ins Triggered . | . . . . Exploration Rate (%) 49 | 4 85 89 20 Regions Visited 3 Branch Regions 2 Pre-discovered Areas 1 | . . 1 . Known Exits Taken . | . . . . Unknown Exits Taken 3 | 1 1 1 . Scrap Searched 1 | . . 1 . Spaces Dug 9 | . . 9 . Terrain Destroyed 34 | . . 18 16 Melee . | . . . . Projectile . | . . . . AOE 34 | . . 18 16 Terrain Rammed . | . . . . Walls Destroyed . | . . . . Machines Disabled . | . . . . Actions | -11 -10 -10 -10 --------- Run | Yrd Mat Min Sub Total 1662 | 87 565 544 466 Wait 140 | 7 30 68 35 Move 1376 | 58 478 459 381 Hop . | . . . . Pick Up 25 | 5 14 4 2 Fast Attach 8 | 7 1 . . Attach 5 | . . . 5 Detach . | . . . . Swap 21 | 1 3 8 9 Drop 7 | . 3 2 2 Fire 80 | 9 36 3 32 Melee . | . . . . Ram . | . . . . Kick . | . . . . Crush . | . . . . Escape Stasis . | . . . . Rewire . | . . . . Trap . | . . . . Miscellaneous . | . . . . Route ------- -11/Scrapyard -10/Materials (discovered 3 exits: [*Mat x2] / *Min) -10/Mines (discovered 3 exits: [*Mat x2] / [*Sub]) -10/Subcaves (discovered 1 exit: [*Mat]) History --------- Turn | Location | Event 27 | -11/Scrapyard | Discovered new exit (range 16) 143 | -11/Scrapyard | Entered Materials 305 | -10/Materials | Build established: Mutant 549 | -10/Materials | Discovered new exit (range 4) 820 | -10/Materials | Discovered new exit (range 7) 994 | -10/Materials | Discovered new exit (range 12) 997 | -10/Materials | Central database locked down 1012 | -10/Materials | Entered Mines 1060 | -10/Mines | Assembled infested the area 1060 | -10/Mines | Found the Drone Emporium 1069 | -10/Mines | Found Prototype Device 1070 | -10/Mines | Identified Splice Drone Bay 1216 | -10/Mines | Discovered new exit (range 10) 1233 | -10/Mines | Assisted by bots powering up and referring to "LRC-V3" 1266 | -10/Mines | Learned location of Storage (-8) 1307 | -10/Mines | Found Prototype Storage 1516 | -10/Mines | Discovered new exit (range 14) 1725 | -10/Mines | Discovered new exit (range 7) 1745 | -10/Mines | Entered Subcaves 1745 | -10/Subcaves | Accompanied by 3 allies 1746 | -10/Subcaves | Approached by a straggling Scientist 1778 | -10/Subcaves | Discovered new exit (range 6) 2295 | -10/Subcaves | Ambushed by Subdwellers from Twisted Machinery 2301 | -10/Subcaves | Visited Clippyterm 2319 | -10/Subcaves | Core integrity fell below 50% 2336 | -10/Subcaves | Ambushed by Subdweller buried in earth 2360 | -10/Subcaves | Core integrity fell below 20% 2394 | -10/Subcaves | Lost 5 parts (1p1n3w) 2427 | -10/Subcaves | Destroyed by GU-6AC(R) with Subdweller Laser Last Messages --------------- 02301_ The door opens automatically. WO-33H(c): "I think it's somewhere east of here" 02323_ 2V-VOA(R) destroyed. 02334_ Assault Rifle destroyed. 02334_ Machine disabled. 02334_ Clippyterm disabled. 02337_ OJ-K8E(R): "GOODGOOD!" 02346_ OL-8KR(R) destroyed. 02348_ Wheel destroyed. 02352_ Grenade Launcher destroyed. 02354_ Ion Engine destroyed. 02356_ The unstable cave ceiling collapses. 02363_ Critical hit (Destroy). 02363_ Med. Laser destroyed. 02369_ OJ-K8E(R) destroyed. 02375_ Acquired Sub. Machine Gun. 02377_ Acquired 52 matter. 02394_ The unstable cave ceiling collapses. 02394_ Battle Rifle crushed. 02415_ Structural Scanner destroyed. Map ----- +----------------------------------------------------+ | ???????????????????## #######??????????????## # | | ???????????????????## #####??????????????## | | ???????????????????### ##??????????????### | | ????????????????###### ##??????????????### # | | ????????????????##### ##???????????????#### | | ????????????????## ### ###???????????????#### | | ????????????????### ########??????????????????? | | ???????############# #######???????????????????? | | ?????############### ###???????????????????????? | | ?????#### # ##### ####??????????????????????? | | ?????## " ###??????????????????????? | | ?????## = #####???????????????????? | | ?????## "" ##???????????????????? | | ?????## =&& " "#### ##???????????????????? | | ?????## | # "###### ##???????????????????? | | ?????## *&&% ########" ###???????????????????? | | ?????## = #"##"### ####???????????????????? | | ?????## # # """"" ####????????????????????? | | ?????#### # ## """## ###?????????????????????? | | ?????########## #"#### ##?????????????????????? | | ???????####### " " " ##?????????????????????? | | ????????????## " " "" ""######??????????????????? | | ????????????#### #" ##########?????????????????? | | ????????????######## ##### #######?????????????? | | ??????????????###### ## ###?????????????? | | ??????????????????## @ R ####???????????? | | ??????????????????## ### R ####?????????? | | ??????????????????### ### ### ###????????? | | ??????????????????####### ###? ##????????? | | ???????????????????###### ##?? ## ###????????? | | ???????????????????????### ##??? ######????????? | | ??????????????????????? ##### ??? #####?????????? | | ???????????????????????? #####???? #????????????? | | ?????????????????????????????????? ##??????????? | | ??????????????????????????????????? ##??????????? | | ??????????????????????????????????? ###??????????? | | ???????????????????????????????????####??????????? | | ???????????????????????????????????###???????????? | | ?????????????????????????????????????????????????? | | ?????????????????????????????????????????????????? | | ?????????????????????????????????????????????????? | | ?????????????????????????????????????????????????? | | ?????????????????????????????????????????????????? | | ?????????????????????????????????????????????????? | | ?????????????????????????????????????????????????? | | ?????????????????????????????????????????????????? | | ?????????????????????????????????????????????????? | | ?????????????????????????????????????????????????? | | ?????????????????????????????????????????????????? | | ?????????????????????????????????????????????????? | +----------------------------------------------------+ Best States ------------- Heat Dissipation 44 Energy Generation 10 Energy Capacity 250 Matter Stores 300 Matter Capacity 300 Sight Range 16 Terrain Scan Density 10 Armor Coverage 150 Evasion (%) 40 Recoil Reduction 2 Item Schematics ----------------- Hcp. Storage Unit | -10/Materials | Hacked Robot Schematics ------------------ None Fabricated ------------ Nothing Repaired ---------- Nothing Studied --------- None Alien Tech Used ----------------- None Achievements -------------- None Challenges ------------ None Game ------ Seed IonicInsulationGravjet Manual? 0 Play Time 00:12:54 Cumulative 157.6 hours Start 2026.03.29 @ 00:01:55 End 2026.03.29 @ 00:14:36 Sessions 1 Manual Loads 0 Difficulty Rogue Special Mode None Game No. 129 Rogue 129 Adventurer 0 Explorer 0 Win Type - Total 2 Types 2/0/0/0/0/0/0/0/0/0 Lore% 72 Gallery% 60 Achievement% 52 Wizard Run 0 Options --------- Layout 2 ASCII 0 Keyboard 0 Movement Mouse Keybinds 0 Fullscreen 1 Font 24/Smallcaps Map View 50x44 Zoom Use 0% Tactical HUD 1 Map Filters NONE Filters NONE Steam 1 RUN: a36465c8-0705-4658-b88b-659815720b1b